Cogmind - Beta 17 @@@ ROGUE MODE // 2026.08.16 @ 13:12:41 Player: Fedop Result: Destroyed by Y-45 Defender with Heavy Assault Rifle Performance ------------- Evolutions (0) 0 Regions Visited (3) 600 Robots Destroyed (25) 125 Value Destroyed (625) 625 Prototype IDs (0) 0 Alien Tech Used (0) 0 Bonus (0) 0 TOTAL SCORE: 1350 Bonus ------- None Cogmind --------- Core Integrity 0/250 Matter 285/300 Energy 200/200 System Corruption 0% Temperature Cool (9) Movement Treading (160) Location -9/Recycling Parts ------- > --- POWER (1) -------- Subdweller Power Source > --- PROPULSION (2) --- Light Treads Light Treads > --- UTILITY (2) ------ Large Storage Unit Seismic Detector > --- WEAPON (2) ------- Spread Laser Subdweller Laser > --- INVENTORY (15) --- Subdweller Power Source Spiked Treads Subdweller Monowheel Structural Scanner Signal Interpreter Terrain Scanner Terrain Scan Processor Utility Shielding Hardened Light Armor Plating Hardened Light Armor Plating Hardened Light Armor Plating Spread Laser Spread Laser Peak State ------------ > --- POWER ------------ Subdweller Power Source > --- PROPULSION ------- Light Treads Light Treads > --- UTILITY ---------- Large Storage Unit Hardened Light Armor Plating > --- WEAPON ----------- Spread Laser Spread Laser > --- INVENTORY -------- Subdweller Monowheel Subdweller Monowheel Structural Scanner Signal Interpreter Terrain Scanner Terrain Scan Processor Seismic Detector Utility Shielding Utility Shielding Hardened Light Armor Plating Hardened Light Armor Plating Spread Laser Subdweller Laser Mining Laser [Rating: 13] Favorites ----------- Power Ion Engine Engine Ion Engine Propulsion Light Treads Treads Light Treads Wheel Compact Wheel Utility Large Storage Unit Device Structural Scanner Storage Large Storage Unit Protection Hardened Light Armor Plating Weapon Spread Laser Energy Gun Spread Laser Special Weapon Mining Laser Build | -11 -10 -10 -9 ------- Run | Yrd Mat Sub Rec Slots Evolved . | . . . . Power . | . . . . Propulsion . | . . . . Utility . | . . . . Weapon . | . . . . Parts Attached 29 | 7 12 10 . Power 5 | 1 1 3 . Engine 5 | 1 1 3 . Core . | . . . . Reactor . | . . . . Propulsion 7 | 4 1 2 . Treads 5 | 2 1 2 . Leg . | . . . . Wheel 2 | 2 . . . Hover . | . . . . Flight . | . . . . Utility 8 | . 4 4 . Device 3 | . 2 1 . Storage 2 | . 2 . . Processor . | . . . . Hackware . | . . . . Protection 3 | . . 3 . Artifact . | . . . . Weapon 9 | 2 6 1 . Energy Gun 8 | 2 5 1 . Energy Cannon . | . . . . Ballistic Gun . | . . . . Ballistic Cannon . | . . . . Launcher . | . . . . Special Weapon 1 | . 1 . . Impact Weapon . | . . . . Slashing Weapon . | . . . . Piercing Weapon . | . . . . Special Melee Weapon . | . . . . Unidentified Prototypes . | . . . . Parts Lost 3 | . . 3 . Power . | . . . . Propulsion 2 | . . 2 . Utility . | . . . . Weapon 1 | . . 1 . Highest Loss Streak 2 | . . 2 . To Critical Strikes . | . . . . Average Backups 11 | 2 11 14 13 Power 1 | . 1 1 1 Propulsion 1 | . 1 1 2 Utility 6 | . 5 8 8 Weapon 2 | 1 2 2 2 Tool/Special . | . . . . Unused Backups 15 | . 6 3 6 Power 2 | . . 1 1 Propulsion 3 | . . 1 2 Utility 7 | . 3 1 3 Weapon 3 | . 3 . . Tool/Special . | . . . . Average Slot Usage (%) 98 | . 97 98 100 Engine 14 | . 14 14 14 Treads 27 | . 27 27 28 Device 11 | . 13 9 9 Storage 13 | . 13 14 14 Protection 1 | . . 4 4 Energy Gun 26 | . 27 24 28 Peak Build Rating 13 | 5 11 13 13 Average Rating 10 | 3 9 11 12 On Entrance 7 | . 5 11 13 Avg Prop Armor Cover (%) . | . . . . Naked Turns . | . . . . Heaviest Build 37 | 7 32 37 37 Greatest Support 40 | 40 40 40 40 Greatest Overweight (x) 1 | . . 1 . Average Overweight (x) . | . . . . Largest Inventory Capacity 15 | 5 15 15 15 Average Capacity 13 | 5 13 15 15 Most Carried 15 | 5 15 15 13 Average Carried 11 | 2 11 14 13 Final Capacity 15 | 5 15 15 15 Final Carried 15 | 3 15 13 13 Class Distribution -------------------- 100% | Mutant Dominant Class ---------------- Mutant | -10/Materials Mutant | -10/Subcaves Mutant | -9/Recycling Resources | -11 -10 -10 -9 ----------- Run | Yrd Mat Sub Rec Matter Collected 515 | 270 110 135 . Remotely . | . . . . Salvage Created 509 | . 348 161 . Parts 37 | . 27 10 . Haulers Intercepted 2 | . 2 . . Recyclers Shooed . | . . . . Parts Field Recycled . | . . . . Retrieved Matter . | . . . . Parts Self-Destructed 8 | . . 8 . Prevented . | . . . . Parts Restored . | . . . . Kills | -11 -10 -10 -9 ------- Run | Yrd Mat Sub Rec Combat Hostiles Destroyed 18 | . 11 7 . Guns 18 | . 11 7 . Classes Destroyed 7 | . 5 2 . Worker 1 | . 1 . . Hauler 2 | . 2 . . Turret 2 | . . 2 . Watcher 2 | . 2 . . Swarmer 6 | . 3 3 . Grunt 8 | . 8 . . Subdweller 4 | . . 4 . Best Kill Streak 5 | . 3 5 . Combat Bots Only 3 | . 3 3 . Max Kills in Single Turn 2 | . 2 2 . Gunslinging 1 | . 1 1 . Exploded . | . . . . Melee . | . . . . Uniques/NPCs Destroyed . | . . . . Combat | -11 -10 -10 -9 -------- Run | Yrd Mat Sub Rec Hostile Shots Fired 153 | . 44 103 6 Missed 43 | . 9 33 1 Hits 110 | . 35 70 5 Projectile 110 | . 35 70 5 Critical Strikes 2 | . . 1 1 Damage Taken 1322 | . 407 844 71 Core 255 | . 41 172 42 Absorbed by Shields . | . . . . Regen/Repaired (Parts) 116 | . 116 . . Core Remaining (%) 100 | 100 . . . Volleys Fired 57 | . 37 20 . Largest 2 | . 2 2 . Hottest 165 | . 165 165 . Shots Fired 114 | . 74 40 . Gun 112 | . 73 39 . Cannon . | . . . . Launcher . | . . . . Special 2 | . 1 1 . Kinetic . | . . . . Thermal 114 | . 74 40 . Explosive . | . . . . Electromagnetic . | . . . . Robot Hit Streak 14 | . 14 13 . Robot Miss Streak 11 | . 10 11 . Penetration Max . | . . . . Secondary Targets 4 | . 1 3 . Max Gunslinging Chain 1 | . 1 1 . Shots Hit Robots 92 | . 59 33 . Core Hits 107 | . 69 38 . Critical Kills . | . . . . Critical Parts Destroyed . | . . . . Critical Strikes . | . . . . Melee Attacks . | . . . . Impact . | . . . . Slashing . | . . . . Piercing . | . . . . Sneak Attacks . | . . . . Combat Hostiles . | . . . . Follow-up Attacks . | . . . . Damage Inflicted 1231 | . 811 420 . Guns 1231 | . 811 420 . Cannons . | . . . . Explosions . | . . . . Melee . | . . . . Ramming . | . . . . Kinetic . | . . . . Thermal 1231 | . 811 420 . Explosive . | . . . . Electromagnetic . | . . . . Impact . | . . . . Slashing . | . . . . Piercing . | . . . . Highest Corruption . | . . . . Average Corruption . | . . . . Corruption Purged . | . . . . Corruption Blocked . | . . . . Overload Shots . | . . . . Overflow Damage . | . . . . Projectiles . | . . . . Explosions . | . . . . Melee . | . . . . Knockbacks . | . . . . Impact . | . . . . Kinetic . | . . . . Secondary . | . . . . Self-Inflicted Damage . | . . . . Shots . | . . . . Rammed . | . . . . Targets Rammed . | . . . . Kicked . | . . . . Crushed . | . . . . Highest Temperature 369 | . 369 211 7 Average Temperature 103 | . 109 83 7 Received Heat Transfer 627 | . 183 399 45 Effects 1 | . 1 . . Short Circuit 1 | . 1 . . Siege Activations . | . . . . Martial Activations . | . . . . Shielding Activations . | . . . . Robots Disrupted . | . . . . Combat Hostiles . | . . . . Robots Corrupted . | . . . . Combat Hostiles . | . . . . Parts Fried . | . . . . Impact Corruptions . | . . . . Robots Melted . | . . . . Combat Hostiles . | . . . . Parts Melted . | . . . . Heat Transferred 1525 | . 1010 515 . Parts Sabotaged . | . . . . Parts Stolen . | . . . . Parts Stripped . | . . . . Power Chain Reactions . | . . . . Alert | -11 -10 -10 -9 ------- Run | Yrd Mat Sub Rec Maximum Alert Level . | . . . . Low Security (%) 100 | 100 100 . 100 Level 1 . | . . . . Level 2 . | . . . . Level 3 . | . . . . Level 4 . | . . . . Level 5 . | . . . . High Security . | . . . . Max Security . | . . . . Peak Influence 139 | . 139 . 7 Initial 4 | . . . 4 Average 20 | . 24 . . Influence Increases 544 | . 362 175 7 Destroy 0b10 Robot/C 320 | . 220 100 . Destroy 0b10 Robot/NC 25 | . 25 . . Destroy Leader 58 | . 58 . . Successful Hack 21 | . 14 . 7 Disable Machine 15 | . 15 . . Lose Combat Pursuer 105 | . 30 75 . Influence Decreases 544 | . 362 166 16 Entered New Map 5 | . . . 5 Time Decay 519 | . 362 146 11 Lost Part 20 | . . 20 . Squads Dispatched 3 | . 3 . . Investigation 2 | . 2 . . Extermination . | . . . . Reinforcement 1 | . 1 . . Assault . | . . . . Garrison . | . . . . Intercept . | . . . . Searches Triggered . | . . . . Construction Impeded . | . . . . Haulers Reinforced . | . . . . Active Scanning Responses . | . . . . Cargo Convoy Interrupts . | . . . . Stealth | -11 -10 -10 -9 --------- Run | Yrd Mat Sub Rec Distress Signals 2 | . 2 . . Communications Jammed . | . . . . Distress Signals . | . . . . Times Spotted 50 | . 33 16 1 Peak Tracking Total 6 | . 4 6 1 Tactical Retreats 6 | . 2 4 . Traps | -11 -10 -10 -9 ------- Run | Yrd Mat Sub Rec Traps Triggered 3 | . 1 2 . Indirectly . | . . . . Trap Hack Attempts . | . . . . Triggered . | . . . . Disarmed . | . . . . Reprogrammed . | . . . . Reused . | . . . . Traps Extracted . | . . . . Installed . | . . . . Triggered . | . . . . Machines | -11 -10 -10 -9 ---------- Run | Yrd Mat Sub Rec Machines Disabled 1 | . 1 . . Max in Single Turn 1 | . 1 . . Machines Repaired . | . . . . Machines Dismantled . | . . . . Machines Sabotaged . | . . . . Overloaded Fab Kills . | . . . . Hacking | -11 -10 -10 -9 --------- Run | Yrd Mat Sub Rec Machines Accessed 14 | . 9 . 5 Terminals 9 | . 7 . 2 Fabricators . | . . . . Repair Stations 1 | . 1 . . Recycling Units 4 | . 1 . 3 Scanalyzers . | . . . . Garrison Access . | . . . . Total Hacks 37 | . 27 . 10 Successful 22 | . 16 . 6 Failed 15 | . 11 . 4 Catastrophic 1 | . 1 . . Database Lockouts . | . . . . Manual 23 | . 19 . 4 Terminals 27 | . 20 . 7 Fabricators . | . . . . Repair Stations 4 | . 4 . . Recycling Units 6 | . 3 . 3 Scanalyzers . | . . . . Garrison Access . | . . . . Terminal Hacks 2 | . 1 . 1 Record 1 | . 1 . . Registered Components 1 | . . . 1 Fabricator Hacks . | . . . . Repair Station Hacks 4 | . 4 . . Scan Component 2 | . 2 . . Repair 2 | . 2 . . Recycling Unit Hacks 4 | . 1 . 3 Report Inventory 4 | . 1 . 3 Scanalyzer . | . . . . Garrison Access Hacks . | . . . . Unauthorized Hacks 12 | . 10 . 2 Terminals 12 | . 10 . 2 Botnet 6 | . 4 . 2 Skim 6 | . 6 . . Fabricators . | . . . . Repair Stations . | . . . . Recycling Units . | . . . . Scanalyzers . | . . . . Garrison Access . | . . . . Data Cores Recovered . | . . . . Used . | . . . . Hacking Detections 10 | . 8 . 2 Full Trace Events 1 | . 1 . . Feedback Events . | . . . . Feedback Blocked . | . . . . Robot Schematics Acquired . | . . . . Robots Built . | . . . . Authchips . | . . . . Time . | . . . . Total Robot Build Rating . | . . . . Part Schematics Acquired . | . . . . Parts Built . | . . . . Authchips . | . . . . Time . | . . . . Total Part Build Rating . | . . . . Part Studies Acquired . | . . . . Parts Repaired 2 | . 2 . . Time 52 | . 52 . . Parts Recycled . | . . . . Recycled Matter . | . . . . Retrieved Matter . | . . . . Retrieved Components . | . . . . Parts Scanalyzed . | . . . . Part Schematics Acquired . | . . . . Parts Damaged . | . . . . Bothacking | -11 -10 -10 -9 ------------ Run | Yrd Mat Sub Rec Used RIF Installer . | . . . . Robots Hacked . | . . . . Non-combat . | . . . . Combat . | . . . . Robot Hacks Applied . | . . . . Relay Couplers Released . | . . . . Fabnet Peak Effective % . | . . . . Robots Rewired . | . . . . Allies Hacked . | . . . . Hacks Repelled . | . . . . Allies | -11 -10 -10 -9 -------- Run | Yrd Mat Sub Rec Total Allies . | . . . . Largest Group . | . . . . Highest-Rated Group . | . . . . Highest-Rated Ally . | . . . . Total Orders . | . . . . Ally Attacks . | . . . . Total Damage . | . . . . Kills . | . . . . Allies Corrupted . | . . . . Allies Melted . | . . . . Intel | -11 -10 -10 -9 ------- Run | Yrd Mat Sub Rec Active Infowar (turns) 2812 | . 1986 553 273 Terrain 175 | . 175 . . Structural 1811 | . 1811 . . Seismic 826 | . . 553 273 Robot Analysis Total . | . . . . Derelict Logs Recovered . | . . . . Drone Launches . | . . . . Drone Recoveries . | . . . . Exploration | -11 -10 -10 -9 ------------- Run | Yrd Mat Sub Rec Turns Passed 3363 | 89 2087 811 376 Spaces Moved 1870 | 69 1132 436 233 Core 23 | 23 . . . Treads 1828 | 27 1132 436 233 Legs . | . . . . Wheels 19 | 19 . . . Hover . | . . . . Flight . | . . . . Fastest Speed 50 | 50 160 160 160 Average Speed 158 | 106 160 161 160 Slowest Speed 240 | 160 160 240 160 Overloaded Moves . | . . . . Propulsion Burnouts . | . . . . Robots Hopped . | . . . . Potential Cave-ins . | . . . . Cave-ins Triggered . | . . . . Exploration Rate (%) 42 | 4 99 27 39 Regions Visited 3 Branch Regions 2 Pre-discovered Areas . | . . . . Known Exits Taken 1 | . 1 . . Unknown Exits Taken 2 | 1 . 1 . Scrap Searched . | . . . . Spaces Dug . | . . . . Terrain Destroyed . | . . . . Melee . | . . . . Projectile . | . . . . AOE . | . . . . Terrain Rammed . | . . . . Walls Destroyed . | . . . . Machines Disabled . | . . . . Actions | -11 -10 -10 -9 --------- Run | Yrd Mat Sub Rec Total 2157 | 84 1334 503 236 Wait 128 | . 116 10 2 Move 1867 | 68 1131 435 233 Hop . | . . . . Pick Up 44 | 7 24 13 . Fast Attach 7 | 3 4 . . Attach 15 | 4 5 6 . Detach 1 | . 1 . . Swap 12 | . 4 7 1 Drop 26 | 2 12 12 . Fire 57 | . 37 20 . Melee . | . . . . Ram . | . . . . Kick . | . . . . Crush . | . . . . Escape Stasis . | . . . . Rewire . | . . . . Trap . | . . . . Miscellaneous . | . . . . Route ------- -11/Scrapyard -10/Materials (discovered 6 exits: [*Mat x3] / [*Min x2] / *Sub) -10/Subcaves -9/Recycling History --------- Turn | Location | Event 5 | -11/Scrapyard | Discovered new exit (range 16) 90 | -11/Scrapyard | Entered Materials 223 | -10/Materials | Discovered new exit (range 16) 300 | -10/Materials | Build established: Mutant 312 | -10/Materials | Discovered new exit (range 8) 817 | -10/Materials | Discovered new exit (range 16) 938 | -10/Materials | Discovered new exit (range 15) 1166 | -10/Materials | Discovered new exit (range 16) 1544 | -10/Materials | Repaired Terrain Scanner 1547 | -10/Materials | Learned Storage stockpile data 1571 | -10/Materials | Repaired Lgt. Treads 1623 | -10/Materials | Learned location of 1 exit from Storage 1690 | -10/Materials | Learned location of 2 exits from Mines 1745 | -10/Materials | Learned 2 Storage zone layouts 1788 | -10/Materials | Identified exit to Subcaves 1788 | -10/Materials | Learned location of 2 exits from Materials 1870 | -10/Materials | Loaded intel: 10 trap records 1928 | -10/Materials | Learned Storage emergency access door positions 2177 | -10/Materials | Entered Subcaves 2178 | -10/Subcaves | Approached by a straggling Scientist 2255 | -10/Subcaves | Ambushed by swarm of Subdwellers 2304 | -10/Subcaves | Lost 4 allies 2478 | -10/Subcaves | Discovered new exit (range 11) 2512 | -10/Subcaves | Core integrity fell below 50% 2662 | -10/Subcaves | Shifting Twisted Machinery released Shrapnel Trap 2672 | -10/Subcaves | A swath of the cavern ceiling suddenly collapsed 2705 | -10/Subcaves | Shifting Twisted Machinery released Spk. Treads 2887 | -10/Subcaves | Core integrity fell below 20% 2988 | -10/Subcaves | Entered Recycling 3364 | -9/Recycling | Destroyed by Y-45 Defender with Heavy Assault Rifle Last Messages --------------- >>Recycling(Report) Matter reserves: 0 Inventory: Empty 03232_ Connecting with Terminal... >>Trojan(Botnet) Trojan loaded successfully. Testing... Terminal linked with 0 systems. Awaiting botnet instructions. >>Inventory(Components) Retrieving component inventory records... No registered component stockpiles. 03312_ Connecting with Terminal... >>Trojan(Botnet) Trojan loaded successfully. Testing... Terminal linked with 1 system. Awaiting botnet instructions. 03320_ Y-45 Defender springs to life. 03361_ Critical hit (Burn: +37). Map ----- +----------------------------------------------------+ | ????????????????????????????????????????????? | | ????????????????????????????????????????????? | | ????????????????????????????????????????????? | | ????????????????????????????????????????????? | | ????????????????????????????????????????????? | | ????????????????????????????????????????????? | | ?????????##########?????????????????????????? | | ?????????# #?????????????????????????? | | ?????????# """ #?????????????????????????? | | ?????????# """ #?????????????????????????? | | ?????????# """ #?????????????????????????? | | ?????????# #####?????????????????????? | | ?????????# # ######????????????????? | | ?????????# + ?????????? | | ???#####?# "Y" # ######+#####??????????? | | ???# #?# """ ## ##?? #??????????? | | ???# ######+###### #??? #??????????? | | ???# ""#??# #???## ##? +??????????? | | ???# Y"#??# ##### ## #??????????? | | ???# ""#??# + #??????????? | | ???# ###??# ##### ## """ """ #??????????? | | ???# #????# #???## ##? """ ""?????????????? | | ???# #????# #????# #???""" "??????????????? | | ???# #????# #????# #???#####??????????????? | | ???# ###??# #????# #??????????????????????? | | ???# #??# #????#@#??????????????????????? | | ???# [[#??# #??###/###########????????????? | | ???# [[#??# #??# #????????????? | | ???# ###??# #??# #?????????????? | | ???# ###### #??# #?????????????? | | ???# #"""## #??# #?????????????? | | ???# #"Y"## #### #?????????????? | | ???# # #?????????????? | | ???# + #?????????????? | | ???# # #?????????????? | | ???#########+### #Y #?????????????? | | ?????# # # #?????????????? | | ?????# / + #?????????????? | | ?????# # # #?????????????? | | ?????# # ########+#####?????????????? | | ?????# + #?????????????????? | | ?????# #### #?????????????????? | | ?????# #??# ######## ????? | | ?????# #### ????? | | ?????######+#####"" ????? | | ??????????# #???#"T ????? | | ??????????# #???#"" """ ????? | | ??????????# ####### """ ### ?????? | | ??????????# """ !!#??????? | | ??????????# """ !!#??????? | +----------------------------------------------------+ Best States ------------- Heat Dissipation 25 Energy Generation 15 Energy Capacity 250 Matter Stores 300 Matter Capacity 300 Sight Range 16 Terrain Scan Range 14 Terrain Scan Density 10 Armor Coverage 150 Evasion (%) 50 Recoil Reduction 2 Item Schematics ----------------- None Robot Schematics ------------------ None Fabricated ------------ Nothing Repaired ---------- Terrain Scanner | 20% | -10/Materials Lgt. Treads | 28% | -10/Materials Studied --------- None Alien Tech Used ----------------- None Achievements -------------- None Challenges ------------ None Game ------ Seed GravitonMetaAutobeam Manual? 0 Play Time 00:37:52 Cumulative 55.5 hours Start 2026.08.16 @ 01:09:30 End 2026.08.16 @ 13:12:41 Sessions 2 Manual Loads 0 Difficulty Rogue Special Mode None Game No. 40 Rogue 40 Adventurer 0 Explorer 0 Win Type - Total 0 Types 0/0/0/0/0/0/0/0/0/0 Lore% 22 Gallery% 31 Achievement% 26 Wizard Run 0 Options --------- Layout 1 ASCII 0 Keyboard 1 Movement Vi Keybinds 0 Fullscreen 2 Font 24/Smallcaps Map View 50x35 Zoom Use 0% Tactical HUD 1 Map Filters NONE Filters NONE Steam 1 RUN: 6e222baf-bc19-4c57-a2e0-918d4a7061c6